fUSD/lending_fUSD_20250812
["ID","MTS","AMOUNT","RATE_DAILY","PERIOD"]
[378733376,1754995836283,-560.01745989,0.00038893,2]
[378733377,1754995836292,-565.075843,0.00038897,30]
[378733378,1754995836302,-565.075843,0.00038897,30]
[378733379,1754995836311,-160.67283559,0.000389,2]
[378733380,1754995836320,-2990.6959486,0.000389,2]
[378733381,1754995836330,-9535.60010308,0.000389,2]
[378733382,1754995836339,-357.45702574,0.000389,2]
[378733383,1754995836348,-1379.18184319,0.000389,2]
[378733384,1754995836357,-2515.9333399,0.000389,2]
[378733385,1754995836367,-225.2233479,0.000389,2]
[378733386,1754995836376,-9229.9789108,0.000389,2]
[378733387,1754995836385,-1000.0,0.00038904,120]
[378733388,1754995836394,-151.02488847,0.00038951,2]
[378733389,1754995836403,-28889.0797017,0.0003896,3]
[378733390,1754995836412,-144445.398508,0.0003896,3]
[378733391,1754995836421,-592.38,0.00038967,2]
[378733392,1754995836430,-151.0,0.0003897,30]
[378733393,1754995836439,-214.767073,0.0003897,30]
[378733394,1754995836449,-214.767073,0.0003897,30]
[378733395,1754995836458,-151.0,0.0003897,30]
[378733396,1754995836467,-151.0,0.0003897,30]
[378733397,1754995836477,-150.0,0.0003897,2]
[378733398,1754995836486,-28889.0797017,0.0003897,3]
[378733399,1754995836495,-150.0,0.00038973,5]
[378733400,1754995836504,-500.0,0.00038973,5]
[378733401,1754995836513,-503.54751798,0.00038973,5]
[378733402,1754995836523,-178.1415206,0.00038978,15]
[378733403,1754995836532,-151.0,0.00038979,120]
[378733404,1754995836542,-28889.0797017,0.00038979,3]
[378733405,1754995836551,-200.0,0.0003898,2]
[378733406,1754995836560,-153.0,0.0003898,7]
[378733407,1754995836570,-153.0,0.0003898,7]
[378733408,1754995836579,-153.82516095,0.0003898,7]
[378733409,1754995836588,-565.075843,0.0003898,30]
[378733410,1754995836597,-565.075843,0.0003898,30]
[378733411,1754995836607,-565.075843,0.0003898,30]
[378733412,1754995836616,-565.075836,0.0003898,30]
[378733413,1754995836625,-222.44447,0.0003898,30]
[378733414,1754995836634,-151.0,0.0003898,30]
[378733415,1754995836643,-86667.239105,0.0003898,3]
[378733416,1754995836653,-2719.52733311,0.00038988,2]
[378733417,1754995836662,-500.40119413,0.00038989,30]
[378733418,1754995836671,-666.0,0.00038989,10]
[378733419,1754995836680,-400.0,0.00038989,120]
[378733420,1754995836690,-999.0,0.00038989,120]
[378733421,1754995836699,-151.0,0.0003899,30]
[378733422,1754995836708,-231.846672,0.0003899,30]
[378733423,1754995836717,-214.767073,0.0003899,30]
[378733424,1754995836726,-214.767073,0.0003899,30]
[378733425,1754995836736,-214.767073,0.0003899,30]
[378733426,1754995836745,-214.767073,0.0003899,30]
[378733427,1754995836754,-151.02488847,0.0003899,2]
[378733428,1754995836763,-3833333.54729425,0.00039,4]
[378733429,1754995837988,-201.28029131,0.00018998,2]
[378733430,1754995838002,-888.0,0.0003887,3]
[378733431,1754995838011,-193.23215878,0.000389,2]
[378733432,1754995838021,-151.0,0.0003899,2]
[378733433,1754995838030,-6442.83541837,0.00039,4]
[378733616,1754995840071,-166.24009982,0.00034656,15]
[378733618,1754995840081,-440.117,0.00036851,2]
[378733620,1754995840091,-16776.55460281,0.00039,4]
[378733623,1754995840102,-593.1,0.00039,4]
[378733929,1754995842972,-151.0,0.00032011,7]
[378733931,1754995842982,-151.0,0.00033213,7]
[378733933,1754995842992,-146816.96268457,0.00039,4]
[378733934,1754995843005,-167.47,0.00039,14]
[378733936,1754995843014,-169.54519647,0.00039,2]
[378733938,1754995843024,-12816.63636997,0.00039,120]
[378733940,1754995843034,-214.767073,0.00039,30]
[378733942,1754995843045,-214.767073,0.00039,30]
[378733944,1754995843055,-239.84119403,0.00039009,2]
[378733946,1754995843064,-250.0,0.00039009,2]
[378733948,1754995843074,-250.0,0.00039009,2]
[378733950,1754995843085,-250.0,0.00039009,2]
[378733952,1754995843095,-313.35984969,0.00039038,2]
[378733954,1754995843104,-150.0,0.00039228,2]
[378733955,1754995843113,-1000.0,0.00039251,2]
[378733956,1754995843123,-151.02488847,0.0003929,2]
[378733957,1754995843132,-1627804.0,0.000393,90]
[378733958,1754995843142,-214.767073,0.000393,30]
[378733959,1754995843151,-214.767068,0.000393,30]
[378733960,1754995843161,-888.0,0.0003937,3]
[378733961,1754995843170,-5000.0,0.000395,6]
[378733962,1754995843179,-888.0,0.000395,3]
[378733963,1754995843189,-250.0,0.00039521,5]
[378733964,1754995843199,-512.0,0.00039584,16]
[378733965,1754995843208,-150.0,0.00039654,2]
[378733966,1754995843218,-736.95,0.00039671,2]
[378733967,1754995843227,-440.0,0.00039671,2]
[378733968,1754995843237,-400.0,0.00039674,120]
[378733969,1754995843246,-457.93703655,0.00039692,2]
[378733970,1754995843255,-211.77135896,0.00039692,2]
[378733971,1754995843265,-150.0,0.00039706,2]
[378733973,1754995843274,-150.0,0.00039708,2]
[378733975,1754995843283,-1000.0,0.00039713,7]
[378733977,1754995843293,-600.74281071,0.00039732,7]
[378733979,1754995843302,-1000.0,0.00039737,7]
[378733981,1754995843311,-1253.0,0.00039851,2]
[378733983,1754995843320,-810.0,0.00039851,2]
[378733985,1754995843331,-1025.0,0.00039851,2]
[378733988,1754995843341,-447.233,0.00039851,2]
[378733990,1754995843350,-4146.0,0.00039851,2]
[378733992,1754995843360,-5000.0,0.0003989,8]
[378733994,1754995843370,-252.13243658,0.00039925,2]
[378733996,1754995843379,-150.0,0.00039932,2]
[378733998,1754995843390,-1000.0,0.00039937,7]
[378734000,1754995843399,-150.0,0.00039938,2]
[378734002,1754995843408,-1000.0,0.0003995,7]
[378734004,1754995843417,-1000.0,0.00039953,7]
[378734006,1754995843426,-150.0,0.00039972,2]
[378734008,1754995843436,-154.0,0.0004,120]
[378734010,1754995843445,-3803.7788827,0.0004,20]
[378734012,1754995843454,-5000.0,0.0004,8]
[378734014,1754995843463,-322.69,0.0004,30]
[378734016,1754995843473,-150.0,0.00040008,2]
[378734018,1754995843482,-250.30010298,0.00040068,5]
[378734020,1754995843491,-1000.0,0.0004007,7]
[378734023,1754995843500,-150.0,0.00040081,2]
[378734025,1754995843509,-150.0,0.00040091,2]
[378734027,1754995843518,-150.0,0.00040109,2]
[378734028,1754995843527,-2515.9333399,0.00040141,2]
[378734030,1754995843536,-150.0,0.00040163,2]
[378734032,1754995843546,-151.86518538,0.00040166,2]
[378734034,1754995843555,-1000.0,0.0004019,7]
[378734036,1754995843564,-150.0,0.00040231,2]
[378734038,1754995843574,-1000.0,0.00040296,7]
[378734040,1754995843583,-160.67283559,0.00040298,2]
[378734042,1754995843593,-150.0,0.00040339,7]
[378734044,1754995843603,-150.0,0.0004034,2]
[378734046,1754995843612,-150.0,0.00040341,2]
[378734048,1754995843621,-150.0,0.00040357,2]
[378734050,1754995843631,-150.0,0.00040358,2]
[378734052,1754995843639,-400.0,0.00040359,120]
[378734054,1754995843649,-150.0,0.00040361,2]
[378734057,1754995843659,-248.71531821,0.00040378,2]
[378734059,1754995843669,-150.0,0.00040385,2]
[378734061,1754995843678,-1000.0,0.00040405,7]
[378734063,1754995843688,-168.0,0.00040407,2]
[378734065,1754995843698,-317.11,0.00040417,120]
[378734067,1754995843708,-150.0,0.00040473,2]
[378734069,1754995843717,-1000.0,0.00040498,7]
[378734071,1754995843727,-150.0,0.00040505,2]
[378734073,1754995843736,-150.0,0.0004058,2]
[378734075,1754995843746,-1000.0,0.00040594,7]
[378734077,1754995843755,-313.35984969,0.00040604,28]
[378734079,1754995843764,-150.0,0.00040649,2]
[378734081,1754995843774,-1000.0,0.00040657,7]
[378734083,1754995843783,-150.0,0.0004068,2]
[378734085,1754995843793,-1000.0,0.000407,7]
[378734087,1754995843803,-1000.0,0.00040811,7]
[378734089,1754995843814,-150.0,0.00040812,2]
[378734091,1754995843824,-150.0,0.00040819,2]
[378734093,1754995843833,-1000.0,0.00040821,120]
[378734095,1754995843842,-1010.51487804,0.00040821,120]
[378734097,1754995843851,-150.0,0.0004083,2]
[378734099,1754995843860,-150.0,0.00040831,2]
[378734101,1754995843869,-421.95005041,0.00040855,7]
[378734103,1754995843879,-154.36,0.00040876,2]
[378734105,1754995843888,-150.0,0.00040881,2]
[378734107,1754995843897,-150.0,0.00040884,2]
[378734109,1754995843907,-150.0,0.00040886,2]
[378734111,1754995843917,-150.0,0.00040901,2]
[378734113,1754995843926,-150.0,0.00040902,7]
[378734115,1754995843935,-150.0,0.00040903,2]
[378734117,1754995843945,-1000.0,0.00040905,7]
[378734119,1754995843955,-1000.0,0.00040967,7]
[378734121,1754995843963,-155.54320444,0.0004099,7]
[378734123,1754995843973,-150.0,0.00040998,2]
[378734125,1754995843983,-986.51,0.00041,120]
[378734127,1754995843992,-8116.3906421,0.00041,120]
[378734129,1754995844007,-5000.0,0.00041,10]
[378734132,1754995844016,-150.0,0.00041001,2]
[378734135,1754995844026,-1000.0,0.0004102,7]
[378734137,1754995844035,-150.0,0.00041041,2]
[378734139,1754995844047,-469.05,0.00041041,2]
[378734141,1754995844057,-173.31,0.00041041,2]
[378734143,1754995844067,-301.66,0.00041041,2]
[378734145,1754995844077,-151.54,0.00041041,2]
[378734147,1754995844088,-167.63,0.00041041,2]
[378734149,1754995844098,-173.31,0.00041041,2]
[378734151,1754995844107,-172.73,0.00041041,2]
[378734153,1754995844117,-400.0,0.00041044,120]
[378734155,1754995844129,-213.66,0.00041068,2]
[378734157,1754995844138,-400.0,0.00041095,30]
[378734159,1754995844147,-401.58677163,0.00041095,30]
[378734161,1754995844157,-403.49194743,0.00041095,30]
[378734163,1754995844167,-422.1931504,0.00041095,30]
[378734165,1754995844177,-400.84217487,0.00041095,2]
[378734167,1754995844187,-400.0,0.00041095,30]
[378734169,1754995844196,-401.47994597,0.00041095,30]
[378734171,1754995844206,-400.0,0.00041095,30]
[378734173,1754995844215,-500.0,0.00041095,30]
[378734175,1754995844224,-500.0,0.00041095,30]
[378734177,1754995844234,-500.0,0.00041095,30]
[378734179,1754995844243,-500.0,0.00041095,30]
[378734181,1754995844252,-500.0,0.00041095,30]
[378734183,1754995844261,-500.0,0.00041095,30]
[378734185,1754995844270,-500.0,0.00041095,30]
[378734187,1754995844280,-387.680465,0.00041095,30]
[378734189,1754995844289,-400.0,0.00041095,30]
[378734192,1754995844300,-400.0,0.00041095,30]
[378734194,1754995844309,-400.0,0.00041095,30]
[378734196,1754995844319,-400.0,0.00041095,30]
[378734198,1754995844328,-400.0,0.00041095,30]
[378734199,1754995844337,-402.73285912,0.00041095,30]
[378734201,1754995844346,-400.0,0.00041095,30]
[378734203,1754995844356,-400.0,0.00041095,30]
[378734205,1754995844365,-400.0,0.00041095,30]
[378734207,1754995844374,-400.0,0.00041095,30]
[378734209,1754995844383,-400.0,0.00041095,30]
[378734211,1754995844393,-400.0,0.00041095,30]
[378734213,1754995844402,-400.0,0.00041095,30]
[378734215,1754995844412,-400.0,0.00041095,30]
[378734217,1754995844421,-400.0,0.00041095,30]
[378734219,1754995844431,-400.0,0.00041095,30]
[378734221,1754995844440,-251.00842637,0.00041095,30]
[378734223,1754995844449,-400.0,0.00041095,30]
[378734225,1754995844458,-400.0,0.00041095,30]
[378734227,1754995844468,-408.36669648,0.00041095,30]
[378734229,1754995844478,-400.0,0.00041095,30]
[378734231,1754995844487,-400.0,0.00041095,30]
[378734233,1754995844497,-400.0,0.00041095,30]
[378734235,1754995844507,-400.0,0.00041095,30]
[378734237,1754995844516,-400.0,0.00041095,30]
[378734239,1754995844525,-400.0,0.00041095,30]
[378734241,1754995844534,-400.0,0.00041095,30]
[378734243,1754995844544,-400.0,0.00041095,30]
[378734245,1754995844553,-400.0,0.00041095,30]
[378734247,1754995844562,-400.0,0.00041095,30]
[378734249,1754995844571,-400.0,0.00041095,30]
[378734251,1754995844581,-806.06,0.00041095,30]
[378734253,1754995844591,-400.0,0.00041095,30]
[378734255,1754995844600,-400.0,0.00041095,30]
[378734258,1754995844609,-400.0,0.00041095,30]
[378734260,1754995844619,-400.0,0.00041095,30]
[378734262,1754995844629,-400.0,0.00041095,30]
[378734264,1754995844638,-400.0,0.00041095,30]
[378734266,1754995844647,-400.0,0.00041095,30]
[378734268,1754995844656,-400.0,0.00041095,30]
[378734270,1754995844666,-207.97663081,0.00041095,30]
[378734272,1754995844675,-400.0,0.00041095,30]
[378734273,1754995844684,-400.0,0.00041095,30]
[378734276,1754995844693,-400.0,0.00041095,30]
[378734277,1754995844702,-400.0,0.00041095,30]
[378734279,1754995844712,-400.0,0.00041095,30]
[378734281,1754995844721,-400.0,0.00041095,30]
[378734295,1754995844837,-402.06946643,0.00041095,30]
[378734297,1754995844847,-400.0,0.00041095,30]
[378734299,1754995844856,-400.0,0.00041095,30]
[378734301,1754995844865,-184.33723262,0.00041095,30]
[378734303,1754995844874,-400.0,0.00041095,30]
[378734305,1754995844884,-400.0,0.00041095,30]
[378734307,1754995844893,-400.0,0.00041095,30]
[378734309,1754995844902,-400.0,0.00041095,30]
[378734311,1754995844912,-400.0,0.00041095,30]
[378734313,1754995844921,-400.0,0.00041095,30]
[378734315,1754995844930,-400.0,0.00041095,30]
[378734317,1754995844939,-400.0,0.00041095,30]
[378734319,1754995844949,-400.0,0.00041095,30]
[378734321,1754995844958,-218.75949506,0.00041095,30]
[378734323,1754995844967,-406.3013309,0.00041095,30]
[378734325,1754995844976,-400.0,0.00041095,30]
[378734327,1754995844986,-402.23980922,0.00041095,30]
[378734329,1754995844996,-400.0,0.00041095,30]
[378734331,1754995845008,-400.0,0.00041095,30]
[378734333,1754995845017,-405.11298342,0.00041095,30]
[378734335,1754995845026,-400.0,0.00041095,30]
[378734337,1754995845036,-483.19998618,0.00041095,30]
[378734339,1754995845047,-400.0,0.00041095,30]
[378734341,1754995845057,-400.0,0.00041095,30]
[378734343,1754995845066,-400.0,0.00041095,30]
[378734345,1754995845076,-400.0,0.00041095,30]
[378734347,1754995845085,-400.0,0.00041095,30]
[378734349,1754995845094,-400.0,0.00041095,30]
[378734351,1754995845104,-400.0,0.00041095,30]
[378734353,1754995845113,-400.0,0.00041095,30]
[378734355,1754995845122,-405.01043546,0.00041095,30]
[378734357,1754995845132,-400.0,0.00041095,30]
[378734359,1754995845141,-400.0,0.00041095,30]
[378734361,1754995845150,-400.0,0.00041095,30]
[378734363,1754995845160,-401.67994188,0.00041095,30]
[378734365,1754995845170,-400.0,0.00041095,30]
[378734367,1754995845180,-400.0,0.00041095,30]
[378734369,1754995845189,-400.0,0.00041095,30]
[378734371,1754995845199,-400.0,0.00041095,30]
[378734373,1754995845207,-400.0,0.00041095,30]
[378734375,1754995845218,-400.0,0.00041095,30]
[378734377,1754995845227,-405.02403727,0.00041095,30]
[378734379,1754995845237,-401.03654981,0.00041095,2]
[378734381,1754995845247,-400.0,0.00041095,30]
[378734383,1754995845256,-400.0,0.00041095,30]
[378734385,1754995845266,-400.0,0.00041095,30]
[378734387,1754995845275,-400.0,0.00041095,30]
[378734389,1754995845285,-400.0,0.00041095,30]
[378734391,1754995845294,-400.0,0.00041095,30]
[378734393,1754995845303,-371.84697123,0.00041095,30]
[378734395,1754995845312,-400.0,0.00041095,30]
[378734397,1754995845321,-400.0,0.00041095,30]
[378734399,1754995845331,-400.0,0.00041095,30]
[378734401,1754995845340,-400.0,0.00041095,30]
[378734403,1754995845349,-400.0,0.00041095,30]
[378734405,1754995845358,-400.0,0.00041095,30]
[378734407,1754995845367,-400.0,0.00041095,30]
[378734409,1754995845376,-400.0,0.00041095,30]
[378734411,1754995845386,-400.0,0.00041095,30]
[378734413,1754995845395,-400.0,0.00041095,30]
[378734415,1754995845404,-400.0,0.00041095,30]
[378734417,1754995845414,-400.0,0.00041095,30]
[378734419,1754995845424,-400.0,0.00041095,30]
[378734421,1754995845433,-411.69563878,0.00041095,30]
[378734423,1754995845442,-400.0,0.00041095,30]
[378734425,1754995845452,-410.27846593,0.00041095,30]
[378734427,1754995845461,-400.0,0.00041095,30]
[378734429,1754995845471,-317.02792645,0.00041095,30]
[378734431,1754995845480,-403.50072187,0.00041095,30]
[378734433,1754995845489,-400.0,0.00041095,30]
[378734434,1754995845499,-419.86390403,0.00041095,30]
[378734436,1754995845508,-401.9290925,0.00041095,30]
[378734437,1754995845518,-400.0,0.00041095,30]
[378734438,1754995845527,-400.0,0.00041095,30]
[378734439,1754995845536,-400.0,0.00041095,30]
[378734441,1754995845546,-400.0,0.00041095,30]
[378734443,1754995845556,-400.0,0.00041095,30]
[378734445,1754995845566,-400.0,0.00041095,30]
[378734447,1754995845576,-400.0,0.00041095,30]
[378734449,1754995845585,-400.0,0.00041095,30]
[378734451,1754995845595,-400.0,0.00041095,30]
[378734453,1754995845604,-400.0,0.00041095,30]
[378734455,1754995845614,-400.0,0.00041095,30]
[378734457,1754995845623,-400.0,0.00041095,30]
[378734459,1754995845633,-400.0,0.00041095,30]
[378734461,1754995845642,-400.0,0.00041095,30]
[378734463,1754995845651,-400.0,0.00041095,30]
[378734465,1754995845661,-402.11341278,0.00041095,30]
[378734467,1754995845670,-514.71,0.00041095,30]
[378734469,1754995845679,-400.0,0.00041095,30]
[378734471,1754995845688,-400.0,0.00041095,30]
[378734473,1754995845698,-400.0,0.00041095,30]
[378734475,1754995845707,-400.0,0.00041095,30]
[378734477,1754995845716,-400.0,0.00041095,30]
[378734479,1754995845726,-400.0,0.00041095,30]
[378734481,1754995845735,-400.0,0.00041095,30]
[378734483,1754995845744,-400.0,0.00041095,30]
[378734485,1754995845753,-400.0,0.00041095,30]
[378734487,1754995845763,-416.0438597,0.00041095,30]
[378734489,1754995845772,-400.0,0.00041095,30]
[378734491,1754995845782,-400.0,0.00041095,30]
[378734493,1754995845791,-400.0,0.00041095,30]
[378734495,1754995845801,-460.75546416,0.00041095,30]
[378734497,1754995845811,-347.68661445,0.00041095,30]
[378734499,1754995845820,-400.0,0.00041095,30]
[378734501,1754995845829,-400.0,0.00041095,30]
[378734503,1754995845839,-400.0,0.00041095,30]
[378734505,1754995845848,-400.0,0.00041095,30]
[378734507,1754995845858,-400.0,0.00041095,30]
[378734509,1754995845867,-400.0,0.00041095,30]
[378734511,1754995845876,-400.0,0.00041095,30]
[378734513,1754995845886,-400.0,0.00041095,30]
[378734515,1754995845896,-400.0,0.00041095,30]
[378734517,1754995845905,-400.0,0.00041095,30]
[378734519,1754995845914,-400.0,0.00041095,30]
[378734521,1754995845924,-400.0,0.00041095,30]
[378734523,1754995845933,-406.23266926,0.00041095,30]
[378734525,1754995845943,-400.0,0.00041095,30]
[378734527,1754995845953,-400.0,0.00041095,30]
[378734529,1754995845962,-403.12334248,0.00041095,30]
[378734531,1754995845972,-402.46565294,0.00041095,30]
[378734533,1754995845982,-400.0,0.00041095,30]
[378734535,1754995845991,-402.68940898,0.00041095,30]
[378734537,1754995846004,-400.0,0.00041095,30]
[378734539,1754995846015,-400.0,0.00041095,30]
[378734541,1754995846024,-400.0,0.00041095,30]
[378734543,1754995846035,-400.0,0.00041095,30]
[378734545,1754995846046,-400.0,0.00041095,30]
[378734547,1754995846055,-400.0,0.00041095,30]
[378734549,1754995846065,-400.0,0.00041095,30]
[378734551,1754995846076,-400.0,0.00041095,30]
[378734553,1754995846086,-400.0,0.00041095,30]
[378734555,1754995846095,-402.36241076,0.00041095,30]
[378734557,1754995846104,-400.0,0.00041095,30]
[378734559,1754995846113,-400.0,0.00041095,30]
[378734561,1754995846123,-408.00326396,0.00041095,30]
[378734563,1754995846133,-400.0,0.00041095,30]
[378734565,1754995846142,-400.0,0.00041095,30]
[378734567,1754995846151,-400.0,0.00041095,30]
[378734569,1754995846161,-400.0,0.00041095,30]
[378734571,1754995846171,-400.0,0.00041095,30]
[378734573,1754995846180,-404.50722095,0.00041095,30]
[378734575,1754995846189,-436.47,0.00041095,30]
[378734577,1754995846198,-401.45203116,0.00041095,30]
[378734579,1754995846208,-400.0,0.00041095,30]
[378734581,1754995846219,-400.0,0.00041095,30]
[378734583,1754995846229,-400.0,0.00041095,30]
[378734585,1754995846238,-400.0,0.00041095,30]
[378734587,1754995846247,-400.0,0.00041095,30]
[378734589,1754995846257,-400.0,0.00041095,30]
[378734591,1754995846266,-400.0,0.00041095,30]
[378734593,1754995846275,-400.0,0.00041095,30]
[378734595,1754995846284,-400.0,0.00041095,30]
[378734597,1754995846294,-400.0,0.00041095,30]
[378734599,1754995846303,-400.0,0.00041095,30]
[378734601,1754995846312,-407.72149134,0.00041095,30]
[378734604,1754995846321,-400.0,0.00041095,30]
[378734606,1754995846331,-400.0,0.00041095,30]
[378734608,1754995846340,-400.0,0.00041095,30]
[378734610,1754995846350,-400.0,0.00041095,30]
[378734612,1754995846359,-400.0,0.00041095,30]
[378734614,1754995846369,-404.53162847,0.00041095,30]
[378734616,1754995846378,-400.0,0.00041095,30]
[378734618,1754995846387,-400.0,0.00041095,30]
[378734620,1754995846397,-400.0,0.00041095,30]
[378734622,1754995846406,-400.0,0.00041095,30]
[378734624,1754995846415,-400.0,0.00041095,30]
[378734626,1754995846425,-400.0,0.00041095,30]
[378734628,1754995846434,-400.0,0.00041095,30]
[378734630,1754995846443,-400.0,0.00041095,30]
[378734632,1754995846452,-400.0,0.00041095,30]
[378734634,1754995846463,-400.0,0.00041095,30]
[378734647,1754995846473,-400.0,0.00041095,30]
[378734649,1754995846585,-400.0,0.00041095,30]
[378734651,1754995846594,-400.0,0.00041095,30]
[378734653,1754995846603,-403.09997513,0.00041095,30]
[378734655,1754995846613,-400.0,0.00041095,30]
[378734657,1754995846622,-400.0,0.00041095,30]
[378734659,1754995846631,-400.0,0.00041095,30]
[378734661,1754995846641,-400.0,0.00041095,30]
[378734663,1754995846650,-400.0,0.00041095,30]
[378734665,1754995846659,-400.0,0.00041095,30]
[378734667,1754995846668,-400.0,0.00041095,30]
[378734669,1754995846677,-400.0,0.00041095,30]
[378734671,1754995846686,-400.0,0.00041095,30]
[378734673,1754995846696,-400.0,0.00041095,30]
[378734675,1754995846705,-400.0,0.00041095,30]
[378734677,1754995846714,-403.81148369,0.00041095,30]
[378734679,1754995846724,-400.0,0.00041095,30]
[378734681,1754995846733,-400.0,0.00041095,30]
[378734683,1754995846742,-400.0,0.00041095,30]
[378734685,1754995846751,-400.0,0.00041095,30]
[378734687,1754995846761,-400.0,0.00041095,30]
[378734689,1754995846770,-400.0,0.00041095,30]
[378734691,1754995846780,-400.0,0.00041095,30]
[378734693,1754995846789,-400.0,0.00041095,30]
[378734695,1754995846798,-400.0,0.00041095,30]
[378734697,1754995846808,-400.0,0.00041095,30]
[378734699,1754995846817,-407.11,0.00041095,30]
[378734701,1754995846827,-530.39,0.00041095,30]
[378734703,1754995846837,-400.0,0.00041095,30]
[378734705,1754995846846,-400.0,0.00041095,30]
[378734707,1754995846856,-400.0,0.00041095,30]
[378734709,1754995846865,-400.0,0.00041095,30]
[378734711,1754995846875,-179.6923989,0.00041095,30]
[378734713,1754995846886,-400.0,0.00041095,30]
[378734715,1754995846897,-500.0,0.00041095,30]
[378734718,1754995846907,-400.0,0.00041095,30]
[378734719,1754995846916,-400.0,0.00041095,30]
[378734722,1754995846926,-403.87925866,0.00041095,30]
[378734724,1754995846936,-400.0,0.00041095,30]
[378734726,1754995846946,-400.0,0.00041095,30]
[378734728,1754995846955,-400.0,0.00041095,30]
[378734730,1754995846964,-400.0,0.00041095,30]
[378734732,1754995846974,-400.0,0.00041095,30]
[378734734,1754995846984,-400.0,0.00041095,30]
[378734736,1754995846995,-400.0,0.00041095,30]
[378734738,1754995847007,-575.65,0.00041095,30]
[378734740,1754995847017,-400.0,0.00041095,30]
[378734742,1754995847026,-400.0,0.00041095,30]
[378734744,1754995847035,-400.0,0.00041095,30]
[378734746,1754995847047,-400.0,0.00041095,30]
[378734748,1754995847056,-400.0,0.00041095,30]
[378734750,1754995847065,-400.0,0.00041095,30]
[378734752,1754995847076,-400.0,0.00041095,30]
[378734754,1754995847087,-400.0,0.00041095,30]
[378734756,1754995847096,-178.14265247,0.00041095,30]
[378734758,1754995847106,-401.71279577,0.00041095,30]
[378734760,1754995847116,-400.0,0.00041095,30]
[378734762,1754995847125,-400.0,0.00041095,30]
[378734764,1754995847134,-400.0,0.00041095,30]
[378734766,1754995847144,-400.0,0.00041095,30]
[378734768,1754995847154,-400.0,0.00041095,30]
[378734770,1754995847164,-400.0,0.00041095,30]
[378734772,1754995847174,-400.0,0.00041095,30]
[378734774,1754995847183,-231.46841587,0.00041095,30]
[378734777,1754995847193,-400.0,0.00041095,30]
[378734779,1754995847202,-400.0,0.00041095,30]
[378734780,1754995847211,-400.0,0.00041095,30]
[378734782,1754995847221,-400.0,0.00041095,30]
[378734785,1754995847230,-400.0,0.00041095,30]
[378734787,1754995847239,-400.0,0.00041095,30]
[378734789,1754995847249,-400.0,0.00041095,30]
[378734791,1754995847258,-400.0,0.00041095,30]
[378734793,1754995847267,-400.0,0.00041095,30]
[378734795,1754995847276,-400.0,0.00041095,30]
[378734796,1754995847285,-400.0,0.00041095,30]
[378734798,1754995847294,-408.43,0.00041095,30]
[378734800,1754995847304,-400.0,0.00041095,30]
[378734802,1754995847313,-400.0,0.00041095,30]
[378734804,1754995847322,-400.0,0.00041095,30]
[378734806,1754995847331,-400.0,0.00041095,30]
[378734808,1754995847341,-400.0,0.00041095,30]
[378734810,1754995847350,-400.0,0.00041095,30]